Cogmind - Beta 15 @@@ ROGUE MODE // 2025.06.04 @ 08:53:15 Player: puppuppit Result: Destroyed by 1F-SYL(R) with Subdweller Shrapnel Launcher Performance ------------- Evolutions (0) 0 Regions Visited (3) 600 Robots Destroyed (56) 280 Value Destroyed (1100) 1100 Prototype IDs (16) 320 Alien Tech Used (0) 0 Bonus (0) 0 TOTAL SCORE: 2300 Bonus ------- None Cogmind --------- Core Integrity 0/250 Matter 279/300 Energy 80/100 System Corruption 0% Temperature Cool (0) Movement Core (400) Ox7 Location -10/Subcaves Parts ------- > --- POWER (1) -------- Subdweller Power Source > --- PROPULSION (2) --- Subdweller Monowheel > --- UTILITY (2) ------ Medium Storage Unit > --- WEAPON (2) ------- Subdweller Machine Gun Subdweller Machine Gun > --- INVENTORY (10) --- Medium Matter Pod (0) Structural Scanner Subdweller Optics Cobbler Unit Powered Cannon Autogun Peak State ------------ > --- POWER ------------ Subdweller Power Source > --- PROPULSION ------- Spiked Treads Subdweller Monowheel > --- UTILITY ---------- Medium Storage Unit Makeshift Kinetic Plating > --- WEAPON ----------- Battle Rifle Battle Rifle > --- INVENTORY -------- Medium Matter Pod Structural Scanner Subdweller Optics Cobbler Unit Powered Cannon Autogun Subdweller Machine Gun Subdweller Machine Gun [Rating: 17] Favorites ----------- Power Light Ion Engine Engine Light Ion Engine Power Core Light Nuclear Core Propulsion Wheel Treads Light Treads Wheel Wheel Utility Medium Storage Unit Device Structural Scanner Storage Medium Storage Unit Processor Signal Interpreter Protection Medium Armor Plating Weapon Battle Rifle Ballistic Gun Battle Rifle Ballistic Cannon Light Cannon Launcher Rocket Launcher Build | -11 -10 -10 -10 ------- Run | Yrd Mat Min Sub Slots Evolved . | . . . . Power . | . . . . Propulsion . | . . . . Utility . | . . . . Weapon . | . . . . Parts Attached 37 | 8 9 5 15 Power 5 | 1 2 1 1 Engine 4 | 1 2 . 1 Core 1 | . . 1 . Reactor . | . . . . Propulsion 8 | 2 . 3 3 Treads 4 | 2 . 1 1 Leg . | . . . . Wheel 4 | . . 2 2 Hover . | . . . . Flight . | . . . . Utility 10 | 2 4 1 3 Device 4 | 1 2 . 1 Storage 2 | 1 1 . . Processor 1 | . . 1 . Hackware . | . . . . Protection 3 | . 1 . 2 Artifact . | . . . . Weapon 14 | 3 3 . 8 Energy Gun . | . . . . Energy Cannon . | . . . . Ballistic Gun 10 | 3 2 . 5 Ballistic Cannon 1 | . 1 . . Launcher 3 | . . . 3 Special Weapon . | . . . . Impact Weapon . | . . . . Slashing Weapon . | . . . . Piercing Weapon . | . . . . Special Melee Weapon . | . . . . Unidentified Prototypes . | . . . . Parts Lost 11 | . 3 2 6 Power . | . . . . Propulsion 3 | . . 2 1 Utility 3 | . 1 . 2 Weapon 5 | . 2 . 3 Highest Loss Streak 4 | . 1 1 4 To Critical Strikes . | . . . . Average Backups 7 | . 6 9 7 Power . | . . . . Propulsion . | . . . . Utility 3 | . 3 4 3 Weapon 3 | . 2 4 3 Tool/Special . | . . . . Unused Backups 14 | . 3 2 9 Power . | . . . . Propulsion 1 | . . . 1 Utility 4 | . . 1 3 Weapon 9 | . 3 1 5 Tool/Special . | . . . . Average Slot Usage (%) 98 | . 99 99 97 Engine 9 | . 14 11 7 Core 4 | . . 2 6 Treads 13 | . 28 8 10 Wheel 14 | . . 18 17 Device 7 | . 12 2 8 Storage 13 | . 14 14 12 Protection 6 | . 1 11 5 Ballistic Gun 25 | . 25 28 24 Launcher 1 | . . . 3 Peak Build Rating 17 | 7 11 13 17 Average Rating 11 | 5 7 11 14 On Entrance 7 | . 7 11 12 Naked Turns . | . . . . Heaviest Build 29 | 13 26 28 29 Greatest Support 40 | 40 40 40 20 Greatest Overweight (x) 2 | . . 2 1 Average Overweight (x) . | . . . . Largest Inventory Capacity 10 | 8 10 10 10 Average Capacity 9 | 7 9 10 9 Most Carried 10 | 2 10 10 10 Average Carried 8 | . 6 9 9 Final Capacity 10 | 8 10 10 10 Final Carried 10 | 2 10 9 10 Class Distribution -------------------- 47% | Scavenger-Mutant 40% | Mutant 11% | Derelict-Mutant Dominant Class ---------------- Mutant | -10/Materials Scavenger-Mutant | -10/Mines Scavenger-Mutant | -10/Subcaves Resources | -11 -10 -10 -10 ----------- Run | Yrd Mat Min Sub Matter Collected 2226 | 305 530 628 763 Remotely . | . . . . Salvage Created 1943 | 166 622 858 297 Parts 130 | 17 49 45 19 Haulers Intercepted 1 | . 1 . . Recyclers Shooed 5 | . 4 1 . Parts Field Recycled . | . . . . Retrieved Matter . | . . . . Parts Self-Destructed 4 | . . . 4 Prevented . | . . . . Kills | -11 -10 -10 -10 ------- Run | Yrd Mat Min Sub Combat Hostiles Destroyed 29 | . 12 8 9 Guns 22 | . 10 8 4 Cannons 2 | . 2 . . AOE 5 | . . . 5 Classes Destroyed 8 | 3 4 . 1 Worker 9 | 2 2 5 . Builder 4 | . 2 2 . Tunneler 6 | 4 . 2 . Hauler 1 | . 1 . . Recycler 7 | 1 2 4 . Swarmer 5 | . 5 . . Grunt 15 | . 7 8 . Subdweller 9 | . . . 9 Best Kill Streak 7 | 7 5 3 4 Combat Bots Only 4 | . 4 2 4 Max Kills in Single Turn 2 | 1 2 1 2 Gunslinging 1 | . 1 . . Exploded 2 | . . . 2 Melee . | . . . . Uniques/NPCs Destroyed . | . . . . Combat | -11 -10 -10 -10 -------- Run | Yrd Mat Min Sub Hostile Shots Fired 158 | . 82 27 49 Missed 31 | . 18 4 9 Hits 127 | . 64 23 40 Projectile 127 | . 64 23 40 AOE 3 | . . . 3 Critical Strikes 2 | . . 1 1 Damage Taken 2230 | . 639 348 1243 Core 251 | . 59 25 167 Absorbed by Shields . | . . . . Core Remaining (%) 100 | 100 . . . Volleys Fired 171 | 14 53 65 39 Largest 2 | 2 2 2 2 Hottest 65 | 40 50 46 65 Shots Fired 333 | 28 106 127 72 Gun 314 | 28 100 127 59 Cannon 6 | . 6 . . Launcher 13 | . . . 13 Special . | . . . . Kinetic 325 | 28 106 127 64 Thermal . | . . . . Explosive 8 | . . . 8 Electromagnetic . | . . . . Robot Hit Streak 24 | 5 16 9 24 Robot Miss Streak 5 | 3 3 5 2 Penetration Max . | . . . . Secondary Targets 3 | . 3 . . Max Gunslinging Chain 1 | . 1 . . Shots Hit Robots 222 | 16 76 81 49 Core Hits 84 | 8 29 31 16 Critical Kills . | . . . . Critical Parts Destroyed 1 | . 1 . . Critical Strikes 1 | . 1 . . Destroy 1 | . 1 . . Melee Attacks . | . . . . Impact . | . . . . Slashing . | . . . . Piercing . | . . . . Sneak Attacks . | . . . . Combat Hostiles . | . . . . Follow-up Attacks . | . . . . Damage Inflicted 3641 | 201 920 1231 1289 Guns 2952 | 201 849 1231 671 Cannons 71 | . 71 . . Explosions 618 | . . . 618 Melee . | . . . . Ramming . | . . . . Kinetic 3429 | 201 920 1231 1077 Thermal . | . . . . Explosive 212 | . . . 212 Electromagnetic . | . . . . Impact . | . . . . Slashing . | . . . . Piercing . | . . . . Highest Corruption . | . . . . Average Corruption . | . . . . Corruption Purged . | . . . . Corruption Blocked . | . . . . Overload Shots . | . . . . Overflow Damage . | . . . . Projectiles . | . . . . Explosions . | . . . . Melee . | . . . . Knockbacks . | . . . . Impact . | . . . . Kinetic . | . . . . Secondary . | . . . . Self-Inflicted Damage 174 | . . . 174 Shots 5 | . . . 5 Rammed . | . . . . Targets Rammed . | . . . . Kicked . | . . . . Crushed . | . . . . Highest Temperature 249 | . 28 114 249 Average Temperature 29 | . 11 24 118 Received Heat Transfer 940 | . 219 216 505 Effects 1 | . . . 1 Energy Bleed 1 | . . . 1 Siege Activations . | . . . . Martial Activations . | . . . . Shielding Activations . | . . . . Robots Disrupted . | . . . . Combat Hostiles . | . . . . Robots Corrupted . | . . . . Combat Hostiles . | . . . . Parts Fried . | . . . . Impact Corruptions . | . . . . Robots Melted . | . . . . Combat Hostiles . | . . . . Parts Melted . | . . . . Heat Transferred . | . . . . Parts Sabotaged . | . . . . Parts Stolen . | . . . . Parts Stripped . | . . . . Power Chain Reactions . | . . . . Alert | -11 -10 -10 -10 ------- Run | Yrd Mat Min Sub Maximum Alert Level 1 | . 1 . . Low Security (%) 88 | 100 70 100 . Level 1 11 | . 29 . . Level 2 . | . . . . Level 3 . | . . . . Level 4 . | . . . . Level 5 . | . . . . High Security . | . . . . Max Security . | . . . . Peak Influence 321 | 15 321 135 . Initial 115 | . . 115 . Average 63 | 4 111 35 . Influence Increases 856 | 35 528 293 . Destroy 0b10 Robot/C 400 | . 240 160 . Destroy 0b10 Robot/NC 135 | 35 35 65 . Destroy Leader 102 | . 62 40 . Successful Hack 51 | . 40 11 . Destroy Structure 3 | . 1 2 . Lose Combat Pursuer 165 | . 150 15 . Influence Decreases 856 | 35 230 571 20 Entered New Map 194 | . . 183 11 Time Decay 622 | 35 200 378 9 Lost Part 40 | . 30 10 . Squads Dispatched 5 | . 5 . . Investigation 4 | . 4 . . Extermination . | . . . . Reinforcement 1 | . 1 . . Assault . | . . . . Garrison . | . . . . Intercept . | . . . . Searches Triggered . | . . . . Construction Impeded . | . . . . Haulers Reinforced . | . . . . Active Scanning Responses . | . . . . Cargo Convoy Interrupts . | . . . . Stealth | -11 -10 -10 -10 --------- Run | Yrd Mat Min Sub Distress Signals 2 | . 2 . . Communications Jammed . | . . . . Distress Signals . | . . . . Times Spotted 47 | . 26 9 12 Peak Tracking Total 6 | . 6 2 3 Tactical Retreats 7 | . 6 1 . Traps | -11 -10 -10 -10 ------- Run | Yrd Mat Min Sub Traps Triggered 2 | . 1 . 1 Indirectly . | . . . . Trap Hack Attempts . | . . . . Triggered . | . . . . Disarmed . | . . . . Reprogrammed . | . . . . Reused . | . . . . Traps Extracted . | . . . . Installed . | . . . . Triggered . | . . . . Machines | -11 -10 -10 -10 ---------- Run | Yrd Mat Min Sub Machines Disabled 1 | . . . 1 Max in Single Turn 1 | . . . 1 Machines Repaired . | . . . . Machines Dismantled . | . . . . Machines Sabotaged . | . . . . Overloaded Fab Kills . | . . . . Hacking | -11 -10 -10 -10 --------- Run | Yrd Mat Min Sub Machines Accessed 8 | . 6 1 1 Terminals 7 | . 6 1 . Fabricators . | . . . . Repair Stations . | . . . . Recycling Units . | . . . . Scanalyzers . | . . . . Garrison Access . | . . . . Total Hacks 29 | . 24 4 1 Successful 17 | . 14 2 1 Failed 11 | . 9 2 . Catastrophic 2 | . 2 . . Database Lockouts 1 | . 1 . . Manual 22 | . 18 4 . Terminals 28 | . 24 4 . Fabricators . | . . . . Repair Stations . | . . . . Recycling Units . | . . . . Scanalyzers . | . . . . Garrison Access . | . . . . Terminal Hacks 11 | . 9 1 1 Robot Analysis 4 | . 3 1 . Prototype ID Bank 4 | . 4 . . Terminal Index 1 | . 1 . . Recall Reinforcements 1 | . 1 . . Proto ID Catalog 1 | . . . 1 Fabricator Hacks . | . . . . Repair Station Hacks . | . . . . Recycling Unit Hacks . | . . . . Scanalyzer . | . . . . Garrison Access Hacks . | . . . . Unauthorized Hacks 6 | . 5 1 . Terminals 6 | . 5 1 . Botnet 6 | . 5 1 . Fabricators . | . . . . Repair Stations . | . . . . Recycling Units . | . . . . Scanalyzers . | . . . . Garrison Access . | . . . . Data Cores Recovered . | . . . . Used . | . . . . Hacking Detections 7 | . 6 1 . Full Trace Events 4 | . 4 . . Feedback Events . | . . . . Feedback Blocked . | . . . . Robot Schematics Acquired . | . . . . Robots Built . | . . . . Authchips . | . . . . Time . | . . . . Total Robot Build Rating . | . . . . Part Schematics Acquired . | . . . . Parts Built . | . . . . Authchips . | . . . . Time . | . . . . Total Part Build Rating . | . . . . Parts Repaired . | . . . . Time . | . . . . Parts Recycled . | . . . . Recycled Matter . | . . . . Retrieved Matter . | . . . . Retrieved Components . | . . . . Parts Scanalyzed . | . . . . Part Schematics Acquired . | . . . . Parts Damaged . | . . . . Bothacking | -11 -10 -10 -10 ------------ Run | Yrd Mat Min Sub Used RIF Installer . | . . . . Robots Hacked . | . . . . Non-combat . | . . . . Combat . | . . . . Robot Hacks Applied . | . . . . Relay Couplers Released . | . . . . Fabnet Peak Effective % . | . . . . Robots Rewired . | . . . . Allies Hacked . | . . . . Hacks Repelled . | . . . . Allies | -11 -10 -10 -10 -------- Run | Yrd Mat Min Sub Total Allies . | . . . . Largest Group . | . . . . Highest-Rated Group . | . . . . Highest-Rated Ally . | . . . . Total Orders . | . . . . Ally Attacks . | . . . . Total Damage . | . . . . Kills . | . . . . Allies Corrupted . | . . . . Allies Melted . | . . . . Intel | -11 -10 -10 -10 ------- Run | Yrd Mat Min Sub Active Infowar (turns) 1859 | 38 735 172 914 Structural 1805 | . 719 172 914 Seismic 54 | 38 16 . . Robot Analysis Total 4 | . 3 1 . Derelict Logs Recovered 2 | . . 1 1 Drone Launches . | . . . . Drone Recoveries . | . . . . Exploration | -11 -10 -10 -10 ------------- Run | Yrd Mat Min Sub Turns Passed 4052 | 146 850 1136 1920 Spaces Moved 2384 | 63 396 853 1072 Core 8 | 8 . . . Treads 1309 | 55 396 197 661 Legs . | . . . . Wheels 1067 | . . 656 411 Hover . | . . . . Flight . | . . . . Fastest Speed 50 | 50 160 95 80 Average Speed 140 | 146 160 110 156 Slowest Speed 260 | 160 160 240 260 Overloaded Moves . | . . . . Propulsion Burnouts . | . . . . Robots Hopped . | . . . . Potential Cave-ins . | . . . . Cave-ins Triggered . | . . . . Exploration Rate (%) 52 | 4 58 97 49 Regions Visited 3 Branch Regions 2 Pre-discovered Areas 2 | . . 1 1 Known Exits Taken 1 | . . 1 . Unknown Exits Taken 2 | 1 1 . . Scrap Searched 4 | . . 1 3 Spaces Dug . | . . . . Terrain Destroyed 130 | . . . 130 Melee . | . . . . Projectile . | . . . . AOE 130 | . . . 130 Terrain Rammed . | . . . . Walls Destroyed . | . . . . Machines Disabled . | . . . . Actions | -11 -10 -10 -10 --------- Run | Yrd Mat Min Sub Total 2800 | 85 517 941 1257 Wait 129 | . 34 6 89 Move 2381 | 62 395 852 1072 Hop . | . . . . Pick Up 36 | 1 15 5 15 Fast Attach 13 | 7 2 2 2 Attach 11 | . 3 1 7 Detach 3 | . 1 . 2 Swap 24 | 1 5 4 14 Drop 32 | . 9 6 17 Fire 171 | 14 53 65 39 Melee . | . . . . Ram . | . . . . Kick . | . . . . Crush . | . . . . Escape Stasis . | . . . . Rewire . | . . . . Trap . | . . . . Miscellaneous . | . . . . Route ------- -11/Scrapyard -10/Materials -10/Mines (discovered 4 exits: [*Mat x2] / [*Exi] / *Sub) -10/Subcaves (discovered 1 exit: [*Mat]) History --------- Turn | Location | Event 23 | -11/Scrapyard | Discovered new exit (range 15) 147 | -11/Scrapyard | Entered Materials 312 | -10/Materials | Build established: Mutant 801 | -10/Materials | Central database locked down 953 | -10/Materials | Discovered new exit (range 15) 997 | -10/Materials | Entered Mines 1088 | -10/Mines | Received a Rocket Launcher from a helpful Derelict 1246 | -10/Mines | Deemed a non-threat by the Exiles lab entrance 1246 | -10/Mines | Discovered new exit (range 5) 1376 | -10/Mines | Learned location of Zion (-7) 1443 | -10/Mines | Discovered new exit (range 7) 1671 | -10/Mines | Build established: Scavenger-Mutant 1812 | -10/Mines | Identified exit to Subcaves 1885 | -10/Mines | Discovered new exit (range 7) 2075 | -10/Mines | Discovered new exit (range 8) 2133 | -10/Mines | Entered Subcaves 2651 | -10/Subcaves | Visited 4L-MR0's lab 2674 | -10/Subcaves | Found Powered Cannon 2867 | -10/Subcaves | Discovered new exit (range 9) 3012 | -10/Subcaves | Core integrity fell below 50% 3073 | -10/Subcaves | Shifting Twisted Machinery released Piercing Trap 3081 | -10/Subcaves | Shifting Twisted Machinery released Sub. Machine Gun 3847 | -10/Subcaves | Build established: Derelict-Mutant 4010 | -10/Subcaves | Ambushed by Subdweller buried in earth 4023 | -10/Subcaves | Core integrity fell below 20% 4053 | -10/Subcaves | Destroyed by 1F-SYL(R) with Subdweller Shrapnel Launcher Last Messages --------------- 03159_ Acquired Sub. Optics. 03160_ Extracted 50 matter. 03547_ Dropped Autogun. 03554_ Subatomizers dissect the Mak. Kinetic Plating. 03557_ Acquired Mak. Kinetic Plating. 03565_ Subatomizers dissect the Autogun. 03592_ Sub. Power Source shoots sparks and powers down. 03602_ Subatomizers dissect the Autogun. 04011_ 1F-SYL(R): "ARGHSUB!" 04028_ Mak. Kinetic Plating destroyed. 04029_ Battle Rifle destroyed. 04033_ Destroyed Scrap Shield. 04033_ IC-AHN(R) destroyed. 04036_ Acquired 48 matter. 04043_ Z8-KU4(R) destroyed. 04046_ Acquired 28 matter. 04048_ Subatomizers dissect the Sub. Optics. 04051_ Battle Rifle destroyed. 04053_ Spk. Treads destroyed. Map ----- +----------------------------------------------------+ | # ###### ##???????????????????????? | | ##### ##???????????????????????? | | #### ####???????????????????????? | | # # ## ####???????????????????????? | | ####### ? # #####??????????????????????? | | ########## ## #####?????????????????????? | | ??################ ## ####????????????????????? | | #?############# # ## ####???????????????????? | | #### ######## ### ##########????????????? | | #### ##### ######## #########????????????? | | ## ####### ## ##????????????? | | ##### ###????????????? | | #### #### ###????????????? | | ######### ### ##?????????##### | | ########## ###### ##????????###### | | ##?????### ###### ##???????#### # | | ###??????######??## ## ############# | | ####??????######??## ### ############## | | ###???????????????### ### #### ## | | ??????????????????### #### #### ### | | ???????????????????### #### ##### ### | | ???????????????????## ### ###### ### | | ???????????????????## ;; ; ##?### ## ## | | ?????????????????###;; ; ;# ##??###### | | ?????????????????### ###?###### | | ?????????????????## @ ########## | | ?????????????????## # ##### | | ?????????????????### [ R #### | | ?????????????????# ## ! ;##### | | ??????????????????#### ;#;; #### ##### | | ??????????????????#### # ###### ###### | | ???????????????###### ##### ####?# | | ???????????????##### #### ###??? | | ???????????????## ## ##????? | | ??????????? ###????? | | ?????????? ####?????? ?% | | ?????????? ## ### #####??????????? | | ?????????? #### #### ##### ####???????????? | | ?????????? ##### ##### #######?????????????? | | ????????????? # ##?## ? ####?????????????? | | ?????????????? ????## ?????????????????? | | ?????????????? ?????## ###?????????????????? | | ????????????? ????## ######?????????????????? | | ????????????????????### ######??????????????????? | | ????????????????????########?????????????????????? | | ?????????????????????#####???????????????????????? | | ?????????????????????????????????????????????????? | | ?????????????????????????????????????????????????? | | ?????????????????????????????????????????????????? | | ?????????????????????????????????????????????????? | +----------------------------------------------------+ Best States ------------- Heat Dissipation 25 Energy Generation 15 Energy Capacity 250 Matter Stores 300 Matter Capacity 300 Sight Range 16 Terrain Scan Density 10 Armor Coverage 225 Resistance: KI 10 Evasion (%) 50 Recoil Reduction 2 Item Schematics ----------------- None Robot Schematics ------------------ None Fabricated ------------ Nothing Repaired ---------- Nothing Alien Tech Used ----------------- None Achievements -------------- None Challenges ------------ None Game ------ Seed LongswordThunderShredder Manual? 0 Play Time 00:21:57 Cumulative 252.1 hours Start 2025.06.04 @ 08:30:59 End 2025.06.04 @ 08:53:15 Sessions 1 Manual Loads 0 Difficulty Rogue Special Mode None Game No. 154 Rogue 154 Adventurer 0 Explorer 0 Win Type - Total 3 Types 1/0/1/1/0/0/0/0/0/0 Lore% 79 Gallery% 65 Achievement% 63 Wizard Run 0 Options --------- Layout 2 ASCII 0 Keyboard 1 Movement Vi Keybinds 0 Fullscreen 1 Font 16/Tamsyn Map View 55x47 Zoom Use 0% Tactical HUD 1 Map Filters NONE Filters NONE Steam 0 RUN: e58c3754-d238-45c8-99d0-db1349e3fde1